Workbook

Sheet BWC Costs
A2: BWC Cost Estimator
A3: Worksheet Key
B4: Leave Blank
B5: Required User Input
B6: Automatically Calculated Result
A7: Agency Information
A8: Agency Name | B8: Example Agency
A9: Agency Address
A10: Agency City
A11: Agency State
A12: Agency Zip
A13: Cost Inputs
A14: Questions | F14: Comments & Explanations
A15: Number of sworn officers | B15: 1500
A16: Number of BWC to be fielded | B16: 1500 | F16: Include only primary (deployed) BWCs here. Purchases of spare (backup) cameras (if applicable) are entered below.
F18: Unless purchases spread over multiple years, we will compute a five-year total cost of ownership, with all purchases in year one.
A23: Category | B23: Questions | C23: =IF(C24>0,C24,"Vendor 1") -> BWC, Inc. | D23: =IF(D24>0,D24,"Vendor 2") -> Vendor 2 | E23: =IF(E24>0,E24,"Vendor 3") -> Vendor 3 | F23: Comments & Explanations
A24: Vendor Name(s) | B24: Enter Vendor Names | C24: BWC, Inc. | F24: Enter name(s) of vendors being considered as Vendor 1, Vendor 2, or Vendor 3 under the appropriate column.
A25: Cameras and Docking Stations | B25: Cameras and Docking Stations
B26: Cost per camera | C26: 50 | F26: Enter the cost per camera under the appropriate column for each vendor. If you have a bundled upfront one-time cost per camera enter it here and leave all associated costs included in that bundle blank.
B27: Cost per docking station | C27: 500 | F27: Enter the cost per docking station under the appropriate column for each vendor.
B28: # of cameras per docking station | C28: 10 | D28: 10 | E28: 10 | F28: Enter the number of cameras per docking station under the appropriate column for each vendor.
A29: Number of BWC Purchased per Year | B29: Number of BWC Purchased per Year | F29: This section will automatically populate unless you selected "I want to manually input purchase costs across five years" under the "Purchase Cost Distribution" question.
B30: Year 1 | C30: 1200 | D30: 300 | E30: 300
B31: Year 2 | C31: 300 | D31: 300 | E31: 300
B32: Year 3 | C32: 0 | D32: 300 | E32: 300
B33: Year 4 | C33: 0 | D33: 300 | E33: 300
B34: Year 5 | C34: 0 | D34: 300 | E34: 300
A35: Storage | B35: Storage | F35: Work with your IT personnel and vendors of interest to identify storage requirements and costs.
B36: Cloud fees per camera per month | C36: 12 | F36: If you are considering cloud storage, enter monthly fees charged per officer for any cloud storage vendors of interest. If you are not considering cloud storage, leave this section blank. If you have a bundled monthly cost per camera enter it here and leave all associated costs included in that bundle blank.
B37: Other fixed monthly cloud fees <Describe Here> | C37: 1500 | F37: If you are considering cloud storage, enter monthly fees for any cloud storage vendors of interest. If you are not considering cloud storage, leave this section blank. Please feel free to put a very brief explanation of what is included within this field between the brackets <>where it says <Describe Here>. Additional description, if desired can be put here:
B38: In-house video storage, overall cost | C38: =50*1500 -> 75000 | F38: If you are considering in-house storage, enter the one-time, upfront costs of all in-house video storage that will be required. If you are not considering in-house video storage leave this section blank.
A39: Peripheral Equipment | B39: Peripheral Equipment | F39: Contact vendors of interest for availability and pricing of such items.
B40: Spare cameras | C40: 50 | F40: Enter the number of spare cameras desired.
B41: Camera mounts not included with camera | C41: 50 | F41: Enter the number of camera mounts desired (only if they do not come with cameras).
B42: Cost per camera mount | C42: 20 | F42: Enter the cost per camera mount.
B43: Annual cost of other spare parts | C43: 0 | F43: Enter the combined annual cost of any other desired additional spare parts.
B44: # of auto-initiation triggers | C44: 0 | F44: Enter the number of desired auto-initiation triggers.
B45: Cost per auto-initiation trigger | C45: 500 | F45: Enter the cost per auto-initiation trigger.
B46: Other peripheral equipment <describe here> | C46: 0 | F46: Enter the combined annual cost of any other desired peripheral equipment. Please feel free to put a very brief explanation of what is included within this field between the brackets <>where it says <Describe Here>. Additional description, if desired can be put here:
A47: Licenses (annual fees) | B47: Licenses (annual fees) | F47: Contact vendors of interest for availability and pricing of such items.
A48: Software | B48: Video management software | C48: 15000 | F48: Enter the annual costs of video management software.
B49: Video editing and redaction software | C49: 10000 | F49: Enter the annual costs of redaction software.
B50: CAD integration | C50: 5000 | F50: Enter the annual costs of CAD integration.
A51: Other | B51: Other <describe here> | C51: 500 | F51: Enter the combined annual cost of any other licensing fees not captured already. Please feel free to put a very brief explanation of what is included within this field between the brackets <>where it says <Describe Here>. Additional description, if desired can be put here:
A52: Maintenance | B52: Maintenance not included elsewhere | C52: 0 | F52: Enter the annual cost of maintenance.
A53: IT Infrastructure | B53: Cost to upgrade IT infrastructure (one-time cost) | C53: 25000 | F53: Work with your IT personnel to identify if upgrades are required and, if so, what the costs may be. BWC infrastructure for uploads/downloads and charging often requires upgrades for bandwidth and electrical capacity. If you have a bundled upfront one time total cost enter it here and leave all associated costs included in that bundle blank.
A54: Personnel | B54: Personnel (annual, fully loaded) | F54: Please enter as an annual cost, figuring the personnel time required for each position against the fully weighted annual cost for such a position in your agency.
B55: BWC project manager/coordinator | C55: 100000 | F55: Enter the annual cost for this position.
B56: IT personnel | C56: 200000 | F56: Enter the annual cost for all additional IT personnel.
B57: Training (trainer cost) | C57: 45000 | F57: Enter the annual cost for all training personnel.
B58: Public information personnel | F58: Enter the annual cost for all personnel processing Public Information requests.
B59: Other program personnel <describe here> | C59: 100000 | F59: Enter the combined annual cost for all other additional personnel. Please feel free to put a very brief explanation of what is included within this field between the brackets <>where it says <Describe Here>. Additional description, if desired can be put here:
A60: Prosecution video transmission | B60: Prosecution video transmission | F60: Work with your prosecutor's office and vendors of interest to identify available features and costs.
B61: Can vendor transmit electronically to prosecutors? (Yes/No) | F61: Please check with your vendor for this information.
A62: (Note: If your agency Is not responsible for preparing video for prosecutors, please feel free to skip this section) | B62: If Prosecutor requires videos, will Prosecutor accept electronic transmission? (Yes/No/Maybe/Yes Sometimes) | F62: Please check with your prosecutor's office for this information.
B63: Video Media: Annual # of Videos requested | F63: Enter the total number of annual videos being requested by your prosecutor’s office. This can be estimated by multiplying the number of cases per year that you expect to have video requests by the average number of videos requested per case. Please consult with your prosecutor’s office to determine this amount.
B64: Prosecution video transmission personnel cost per video | F64: Enter the cost for one video for all personnel processing video requests from the prosecutors’ office. This cost can be estimated by multiplying the relevant personnel’s hourly rate by the time required to fulfill an average video request.
B65: Video editing and redaction equipment (upfront cost) | F65: Enter the upfront cost of any new equipment—such as DVD burners or computer upgrades—that you may specifically require to handle prosecution video media preparation. Please consult with IT personnel and prosecutors.
B66: Video editing and redaction supplies cost per video | F66: Enter the cost of editing and redaction supplies per video. Please consult with your prosecutors’ office about the type of media (e.g., CD, DVD, USB thumb drive) generally used to transmit BWC video footage, and the cost of that media.
B67: Video editing and redaction services cost per video | F67: Enter the expected cost of these services per video. Please consult with your agency’s IT personnel and consider consulting with video editing experts within your agency or government entity.
A68: Public Information Request | B68: Public Information Request
B69: Video editing and redaction equipment | C69: 200000 | F69: Enter the upfront cost of this equipment.
B70: Video editing and redaction supplies | F70: Enter the expected average monthly cost of video editing and redaction supplies. If you have a bundled monthly total cost enter it here and leave all associated costs included in that bundle blank.
B71: Video editing and redaction services | F71: Enter the average expected monthly cost of these services.
B72: Public Information Request user fees | C72: 0 | F72: Enter the annual amount your agency expects to receive in reimbursements.
A74: Total Costs | B74: Five-year totals (present value) | C74: =C113 -> 4001071.568 | D74: =C142 -> 0 | E74: =C171 -> 0 | F74: This is the total five-year cost in present value. More detailed cost estimates can be found in the Results section.
A75: Benefit Inputs
A76: Question | B76: Actual | C76: High Estimate | D76: Middle Estimate | E76: Low Estimate | F76: Comments & Explanations
A77: Complaint Reductions | F77: Please note: The entries in this field are not predictions of what will happen. They are merely assumptions of possible impacts, to analyze the benefits of those possible impacts.
A78: # of complaints filed last year | B78: 1500 | F78: Enter the actual number of complaints filed in the last full year of records.
A79: Average cost per complaint | B79: 3000 | F79: Enter the average cost to investigate and resolve complaints filed in the last full year of records
A80: Expected % reduction in complaints | C80: 0.2 | D80: 0.1 | E80: -0.1 | F80: In the corresponding cells, enter a decimal value between 0 and 1 for the high, medium, and low estimates for the percent of complaints that BWCs might reduce. The value will appear as a percent.
A81: Expected % of complaints that can be resolved primarily by video review | C81: 0.6 | D81: 0.5 | E81: 0.4 | F81: In the corresponding cells, enter a decimal value between 0 and 1 for the high, medium, and low estimated for the expected percent reductions in complaints resolved primarily by video review. The value will appear as a percent.
A82: Expected % reduction in average cost if complaint resolved primarily by video review | C82: 0.9 | D82: 0.8 | E82: 0.6 | F82: In the corresponding cells, enter a decimal value between 0 and 1 for the high, medium, and low estimates of percentage reduction in average cost per complaint (entered earlier) if the complaint is resolved primarily by BWC video. The value will appear as a percent.
A83: Use of Force Reductions | F83: Please note: The entries in this field are not predictions of what will happen. They are merely assumptions of possible impacts, to analyze the benefits of those possible impacts.
A84: # of use of force incidents last year | B84: 15 | F84: Enter the actual number of use of force incidents filed in the last full year of records.
A85: Average cost per use of force incident | B85: 150000 | F85: Enter the average cost to investigate and resolve use of force incidents filed in the last full year of records.
A86: Expected reductions in use of force incidents | C86: 0.05 | D86: 0.01 | E86: 0 | F86: In the corresponding cells, enter a decimal value between 0 and 1 for the high, medium, and low estimates for the percentage of use of force incidents that BWCs might reduce. The value will appear as a percent.
A87: Officer-Involved Shooting Reductions | F87: Please note: The entries in this section are not predictions of what will happen. They are merely assumptions of possible impacts, to analyze the benefits of those possible impacts.
A88: # of officer-involved shooting incidents last year | B88: 5 | F88: Enter the actual number of officer-involved shooting incidents filed in the last full year of records.
A89: Cost per officer-involved shooting incident | B89: 1000000 | F89: Enter the average cost to investigate and resolve officer-involved shooting incidents filed in the last full year of records.
A90: Expected reductions in officer involved shooting incidents | C90: 0.007 | D90: 0.005 | E90: 0 | F90: In the corresponding cells, enter a decimal value between 0 and 1 for the high, medium, and low estimates of expected reductions in officer-involved shooting incidents. The value will appear as a percent. Please note: The entries in this field are not predictions of what will happen. They are merely assumptions of possible impacts, to analyze the benefits of those possible impacts.
A92: Total Benefits | B92: Five-year total (present value) | C92: =B121 -> 14540866.71 | D92: =C121 -> 10292590.76 | E92: =D121 -> 3587216.993 | F92: This is the total five-year cost in present value. More detail cost estimates can be found in the Results section.
A93: Other Inputs
A94: Annual Inflation Rate | B94: -0.006 | F94: The annual inflation rate captures the assumed future increase in the average price of personnel and materials.
A95: Annual Cost of Borrowing | B95: -0.006 | F95: The annual discount rate (or real interest rate) reflects how much less a benefit received one year from now is worth relative to a benefit received today. This can be positive, even if there is no price inflation.
A96: Potential Funding Options
A97: Funding Sources | B97: Funding Sources
B98: Grants applied for:
B99: Federal grants | F99: Federal grants, such as the DOJ BJA BWC PIP grant and the DOT DWI Check Point grants, can be used to fund BWC programs.
B100: State grants | F100: Many states offer BWC grants. Please check with your state government for more information.
B101: Nonprofit grants | F101: Some nonprofit agencies, including local police foundations and police nonprofits, have helped fund BWC programs.
B102: State/local government direct appropriations | F102: How much, if any, has your state or local government budgeted directly for your agency's BWC program?
B103: Other operating funds | F103: Any funds not covered by other sources will likely need to be covered by general operating budget funds.
A104: Funding Gaps
A105: Calculations
A106: =IF(C24>0, C24, "Vendor 1") -> BWC, Inc.
A107: Costs | B107: Then Year (inflation-adjusted future dollars) | C107: Present Value
A108: Year 1 | B108: =IFERROR(C30*(C$26+C$27/C$28)+SUM(C$30:C30)*C$36*12+C$37*12+(C$40/B$16)*C30*C$26+(C$41/B$16)*C30*C$42+C$43+(C$44/B$16)*C30*C$45+C$38+C$46+C$48+C$49+C$50+C$51+C$52+C$53+C$55+C$56+C$57+C$58+C$59+ C65 + C63*(C64+C66+C67)+C$69+((C$70+C$71)*12)-C$72, "") -> 1089100 | C108: =IFERROR(B108, "") -> 1089100
A109: Year 2 | B109: =IFERROR((1+$B$94)*(C31*(C$26+C$27/C$28)+SUM(C$30:C31)*C$36*12+C$37*12+(C$40/B$16)*C31*C$26+(C$41/B$16)*C31*C$42+C$43+(C$44/B$16)*C31*C$45+C$46+C$48+C$49+C$50+C$51+C$52+C$55+C$56+C$57+C$58+C$59 + C63*(C64+C66+C67)+ ((C$70+C$71)*12)-C$72), "") -> 735758.8 | C109: =IFERROR(B109/((1+$B$94)*(1+$B$95)), "") -> 744668.008
A110: Year 3 | B110: =IFERROR(((1+$B$94)^2)*(C32*(C$26+C$27/C$28)+SUM(C$30:C32)*C$36*12+C$37*12+(C$40/B$16)*C32*C$26+(C$41/B$16)*C32*C$42+C$43+(C$44/B$16)*C32*C$45+C$46+C$48+C$49+C$50+C$51+C$52+C$55+C$56+C$57+C$58+C$59+ C63*(C64+C66+C67)+((C$70+C$71)*12)-C$72), "") -> 701011.542 | C110: =IFERROR(B110/((1+$B$94)^2*(1+$B$95)^2), "") -> 718091.2436
A111: Year 4 | B111: =IFERROR(((1+$B$94)^3)*(C33*(C$26+C$27/C$28)+SUM(C$30:C33)*C$36*12+C$37*12+(C$40/B$16)*C33*C$26+(C$41/B$16)*C33*C$42+C$43+(C$44/B$16)*C33*C$45+C$46+C$48+C$49+C$50+C$51+C$52+C$55+C$56+C$57+C$58+C$59+ C63*(C64+C66+C67)+ ((C$70+C$71)*12)-C$72), "") -> 696805.4727 | C111: =IFERROR(B111/((1+$B$94)^3*(1+$B$95)^3), "") -> 722425.7984
A112: Year 5 | B112: =IFERROR(((1+$B$94)^4)*(C34*(C$26+C$27/C$28)+SUM(C$30:C34)*C$36*12+C$37*12+(C$40/B$16)*C34*C$26+(C$41/B$16)*C34*C$42+C$43+(C$44/B$16)*C34*C$45+C$46+C$48+C$49+C$50+C$51+C$52+C$55+C$56+C$57+C$58+C$59+ C63*(C64+C66+C67)+ ((C$70+C$71)*12)-C$72), "") -> 692624.6399 | C112: =IFERROR(B112/((1+$B$94)^4*(1+$B$95)^4), "") -> 726786.5175
A113: Total Five-Year | B113: =SUM(B108:B112) -> 3915300.455 | C113: =SUM(C108:C112) -> 4001071.568
A115: Benefits (all present value) | B115: High Estimate | C115: Middle Estimate | D115: Low Estimate
A116: Year 1 | B116: =IFERROR((SUM($C$30:$C30)/$B$15)*($B$78*$B$79*(C$80+(1-C$80)*C$81*C$82)+$B$84*$B$85*(C$86)+$B$88*$B$89*(C$90)), "") -> 2393200 | C116: =IFERROR((SUM($C$30:$C30)/$B$15)*($B$78*$B$79*(D$80+(1-D$80)*D$81*D$82)+$B$84*$B$85*(D$86)+$B$88*$B$89*(D$90)), "") -> 1694000 | D116: =IFERROR((SUM($C$30:$C30)/$B$15)*($B$78*$B$79*(E$80+(1-E$80)*E$81*E$82)+$B$84*$B$85*(E$86)+$B$88*$B$89*(E$90)), "") -> 590400
A117: Year 2 | B117: =IFERROR((SUM($C$30:$C31)/$B$15)*($B$78*$B$79*(C$80+(1-C$80)*C$81*C$82)+$B$84*$B$85*(C$86)+$B$88*$B$89*(C$90))/(1+$B$95), "") -> 3009557.344 | C117: =IFERROR((SUM($C$30:$C31)/$B$15)*($B$78*$B$79*(D$80+(1-D$80)*D$81*D$82)+$B$84*$B$85*(D$86)+$B$88*$B$89*(D$90))/(1+$B$95), "") -> 2130281.69 | D117: =IFERROR((SUM($C$30:$C31)/$B$15)*($B$78*$B$79*(E$80+(1-E$80)*E$81*E$82)+$B$84*$B$85*(E$86)+$B$88*$B$89*(E$90))/(1+$B$95), "") -> 742454.7284
A118: Year 3 | B118: =IFERROR((SUM($C$30:$C32)/$B$15)*($B$78*$B$79*(C$80+(1-C$80)*C$81*C$82)+$B$84*$B$85*(C$86)+$B$88*$B$89*(C$90))/(1+$B$95)^2, "") -> 3027723.686 | C118: =IFERROR((SUM($C$30:$C32)/$B$15)*($B$78*$B$79*(D$80+(1-D$80)*D$81*D$82)+$B$84*$B$85*(D$86)+$B$88*$B$89*(D$90))/((1+$B$95)^2), "") -> 2143140.533 | D118: =IFERROR((SUM($C$30:$C32)/$B$15)*($B$78*$B$79*(E$80+(1-E$80)*E$81*E$82)+$B$84*$B$85*(E$86)+$B$88*$B$89*(E$90))/(1+$B$95)^2, "") -> 746936.3464
A119: Year 4 | B119: =IFERROR((SUM($C$30:$C33)/$B$15)*($B$78*$B$79*(C$80+(1-C$80)*C$81*C$82)+$B$84*$B$85*(C$86)+$B$88*$B$89*(C$90))/(1+$B$95)^3, "") -> 3045999.684 | C119: =IFERROR((SUM($C$30:$C33)/$B$15)*($B$78*$B$79*(D$80+(1-D$80)*D$81*D$82)+$B$84*$B$85*(D$86)+$B$88*$B$89*(D$90))/(1+$B$95)^3, "") -> 2156076.995 | D119: =IFERROR((SUM($C$30:$C33)/$B$15)*($B$78*$B$79*(E$80+(1-E$80)*E$81*E$82)+$B$84*$B$85*(E$86)+$B$88*$B$89*(E$90))/(1+$B$95)^3, "") -> 751445.0165
A120: Year 5 | B120: =IFERROR((SUM($C$30:$C34)/$B$15)*($B$78*$B$79*(C$80+(1-C$80)*C$81*C$82)+$B$84*$B$85*(C$86)+$B$88*$B$89*(C$90))/(1+$B$95)^4, "") -> 3064386 | C120: =IFERROR((SUM($C$30:$C34)/$B$15)*($B$78*$B$79*(D$80+(1-D$80)*D$81*D$82)+$B$84*$B$85*(D$86)+$B$88*$B$89*(D$90))/(1+$B$95)^4, "") -> 2169091.545 | D120: =IFERROR((SUM($C$30:$C34)/$B$15)*($B$78*$B$79*(E$80+(1-E$80)*E$81*E$82)+$B$84*$B$85*(E$86)+$B$88*$B$89*(E$90))/(1+$B$95)^4, "") -> 755980.902
A121: Total | B121: =SUM(B116:B120) -> 14540866.71 | C121: =SUM(C116:C120) -> 10292590.76 | D121: 3587216.993
A123: Net Present Value | B123: High Estimate | C123: Middle Estimate | D123: Low Estimate
A124: Year 1 | B124: =IFERROR(B116-$C108, "") -> 1304100 | C124: 604900 | D124: -498700
A125: Year 2 | B125: 2264889.336 | C125: 1385613.682 | D125: -2213.279678
A126: Year 3 | B126: 2309632.443 | C126: 1425049.29 | D126: 28845.10281
A127: Year 4 | B127: 2323573.886 | C127: 1433651.197 | D127: 29019.21812
A128: Year 5 | B128: 2337599.483 | C128: 1442305.027 | D128: 29194.38443
A129: Total | B129: =B121-$C113 -> 10539795.15 | C129: =C121-$C113 -> 6291519.196 | D129: -413854.5743
B131: High Estimate | C131: Middle Estimate | D131: Low Estimate
A132: Five-Year Return on Investment | B132: =IFERROR((B121-C113)/C113, "") -> 2.634243094 | C132: =IFERROR((C121-C113)/C113, "") -> 1.57245855 | D132: =IFERROR((D121-C113)/C113, "") -> -0.1034359339
A133: Benefit-Cost Ratio | B133: =IFERROR(B121/C113, "") -> 3.634243094 | C133: =IFERROR(C121/C113, "") -> 2.57245855 | D133: =IFERROR(D121/C113, "") -> 0.8965640661
A134: Payback Period | B134: =IF(B129<0,"Never",IF(AND(SUM(B124:B127)<0,SUM(B124:B128)>0)=TRUE,5,IF(AND(SUM(B124:B126)<0,SUM(B124:B127)>0)=TRUE,4,IF(AND(SUM(B124:B125)<0,SUM(B124:B126)>0)=TRUE,3,IF(AND(SUM(B124:B124)<0,SUM(B124:B125)>0)=TRUE,2,1))))) -> 1 | C134: =IF(C129<0,"Never",IF(AND(SUM(C124:C127)<0,SUM(C124:C128)>0)=TRUE,5,IF(AND(SUM(C124:C126)<0,SUM(C124:C127)>0)=TRUE,4,IF(AND(SUM(C124:C125)<0,SUM(C124:C126)>0)=TRUE,3,IF(AND(SUM(C124:C124)<0,SUM(C124:C125)>0)=TRUE,2,1))))) -> 1 | D134: =IF(D129<0,"Never",IF(AND(SUM(D124:D127)<0,SUM(D124:D128)>0)=TRUE,5,IF(AND(SUM(D124:D126)<0,SUM(D124:D127)>0)=TRUE,4,IF(AND(SUM(D124:D125)<0,SUM(D124:D126)>0)=TRUE,3,IF(AND(SUM(D124:D124)<0,SUM(D124:D125)>0)=TRUE,2,1))))) -> Never
A135: =IF(D24>0, D24, "Vendor 2") -> Vendor 2
A136: Costs | B136: Then Year (inflation-adjusted future dollars) | C136: Present Value
A137: Year 1 | B137: =IFERROR(D30*(D$26+D$27/D$28)+SUM(D$30:D30)*D$36*12+D$37*12+(D$40/B$16)*D30*D$26+(D$41/B$16)*D30*D$42+D$43+(D$44/B$16)*D30*D$45+D$38+D$46+D$48+D$49+D$50+D$51+D$52+D$53+D$55+D$56+D$57+D$58+D$59+ D65+D63*(D64+D66+D67)+D$69+((D$70+D$71)*12)-D$72, "") -> 0 | C137: =IFERROR(B137, "") -> 0
A138: Year 2 | B138: =IFERROR((1+$B$94)*(D31*(D$26+D$27/D$28)+SUM(D$30:D31)*D$36*12+D$37*12+(D$40/B$16)*D31*D$26+(D$41/B$16)*D31*D$42+D$43+(D$44/B$16)*D31*D$45+D$46+D$48+D$49+D$50+D$51+D$52+D$55+D$56+D$57+D$58+D$59+D63*(D64+D66+D67)+((D$70+D$71)*12)-D$72), "") -> 0 | C138: =IFERROR(B138/((1+$B$94)*(1+$B$95)), "") -> 0
A139: Year 3 | B139: =IFERROR(((1+$B$94)^2)*(D32*(D$26+D$27/D$28)+SUM(D$30:D32)*D$36*12+D$37*12+(D$40/B$16)*D32*D$26+(D$41/B$16)*D32*D$42+D$43+(D$44/B$16)*D32*D$45+D$46+D$48+D$49+D$50+D$51+D$52+D$55+D$56+D$57+D$58+D$59+D63*(D64+D66+D67)+((D$70+D$71)*12)-D$72), "") -> 0 | C139: =IFERROR(B139/((1+$B$94)^2*(1+$B$95)^2), "") -> 0
A140: Year 4 | B140: =IFERROR(((1+$B$94)^3)*(D33*(D$26+D$27/D$28)+SUM(D$30:D33)*D$36*12+D$37*12+(D$40/B$16)*D33*D$26+(D$41/B$16)*D33*D$42+D$43+(D$44/B$16)*D33*D$45+D$46+D$48+D$49+D$50+D$51+D$52+D$55+D$56+D$57+D$58+D$59+D63*(D64+D66+D67)+((D$70+D$71)*12)-D$72), "") -> 0 | C140: =IFERROR(B140/((1+$B$94)^3*(1+$B$95)^3), "") -> 0
A141: Year 5 | B141: =IFERROR(((1+$B$94)^4)*(D34*(D$26+D$27/D$28)+SUM(D$30:D34)*D$36*12+D$37*12+(D$40/B$16)*D34*D$26+(D$41/B$16)*D34*D$42+D$43+(D$44/B$16)*D34*D$45+D$46+D$48+D$49+D$50+D$51+D$52+D$55+D$56+D$57+D$58+D$59+D63*(D64+D66+D67)+((D$70+D$71)*12)-D$72), "") -> 0 | C141: =IFERROR(B141/((1+$B$94)^4*(1+$B$95)^4), "") -> 0
A142: Total Five-Year | B142: =SUM(B137:B141) -> 0 | C142: =SUM(C137:C141) -> 0
A144: Benefits (all present value) | B144: High Estimate | C144: Middle Estimate | D144: Low Estimate
A145: Year 1 | B145: =IFERROR((SUM($C$30:$C30)/$B$15)*($B$78*$B$79*(C$80+(1-C$80)*C$81*C$82)+$B$84*$B$85*(C$86)+$B$88*$B$89*(C$90)), "") -> 2393200 | C145: =IFERROR((SUM($C$30:$C30)/$B$15)*($B$78*$B$79*(D$80+(1-D$80)*D$81*D$82)+$B$84*$B$85*(D$86)+$B$88*$B$89*(D$90)), "") -> 1694000 | D145: =IFERROR((SUM($C$30:$C30)/$B$15)*($B$78*$B$79*(E$80+(1-E$80)*E$81*E$82)+$B$84*$B$85*(E$86)+$B$88*$B$89*(E$90)), "") -> 590400
A146: Year 2 | B146: =IFERROR((SUM($C$30:$C31)/$B$15)*($B$78*$B$79*(C$80+(1-C$80)*C$81*C$82)+$B$84*$B$85*(C$86)+$B$88*$B$89*(C$90))/(1+$B$95), "") -> 3009557.344 | C146: =IFERROR((SUM($C$30:$C31)/$B$15)*($B$78*$B$79*(D$80+(1-D$80)*D$81*D$82)+$B$84*$B$85*(D$86)+$B$88*$B$89*(D$90))/(1+$B$95), "") -> 2130281.69 | D146: =IFERROR((SUM($C$30:$C31)/$B$15)*($B$78*$B$79*(E$80+(1-E$80)*E$81*E$82)+$B$84*$B$85*(E$86)+$B$88*$B$89*(E$90))/(1+$B$95), "") -> 742454.7284
A147: Year 3 | B147: =IFERROR((SUM($C$30:$C32)/$B$15)*($B$78*$B$79*(C$80+(1-C$80)*C$81*C$82)+$B$84*$B$85*(C$86)+$B$88*$B$89*(C$90))/(1+$B$95)^2, "") -> 3027723.686 | C147: =IFERROR((SUM($C$30:$C32)/$B$15)*($B$78*$B$79*(D$80+(1-D$80)*D$81*D$82)+$B$84*$B$85*(D$86)+$B$88*$B$89*(D$90))/(1+$B$95)^2, "") -> 2143140.533 | D147: =IFERROR((SUM($C$30:$C32)/$B$15)*($B$78*$B$79*(E$80+(1-E$80)*E$81*E$82)+$B$84*$B$85*(E$86)+$B$88*$B$89*(E$90))/(1+$B$95)^2, "") -> 746936.3464
A148: Year 4 | B148: =IFERROR((SUM($C$30:$C33)/$B$15)*($B$78*$B$79*(C$80+(1-C$80)*C$81*C$82)+$B$84*$B$85*(C$86)+$B$88*$B$89*(C$90))/(1+$B$95)^3, "") -> 3045999.684 | C148: =IFERROR((SUM($C$30:$C33)/$B$15)*($B$78*$B$79*(D$80+(1-D$80)*D$81*D$82)+$B$84*$B$85*(D$86)+$B$88*$B$89*(D$90))/(1+$B$95)^3, "") -> 2156076.995 | D148: =IFERROR((SUM($C$30:$C33)/$B$15)*($B$78*$B$79*(E$80+(1-E$80)*E$81*E$82)+$B$84*$B$85*(E$86)+$B$88*$B$89*(E$90))/(1+$B$95)^3, "") -> 751445.0165
A149: Year 5 | B149: =IFERROR((SUM($C$30:$C34)/$B$15)*($B$78*$B$79*(C$80+(1-C$80)*C$81*C$82)+$B$84*$B$85*(C$86)+$B$88*$B$89*(C$90))/(1+$B$95)^4, "") -> 3064386 | C149: =IFERROR((SUM($C$30:$C34)/$B$15)*($B$78*$B$79*(D$80+(1-D$80)*D$81*D$82)+$B$84*$B$85*(D$86)+$B$88*$B$89*(D$90))/(1+$B$95)^4, "") -> 2169091.545 | D149: =IFERROR((SUM($C$30:$C34)/$B$15)*($B$78*$B$79*(E$80+(1-E$80)*E$81*E$82)+$B$84*$B$85*(E$86)+$B$88*$B$89*(E$90))/(1+$B$95)^4, "") -> 755980.902
A150: Total | B150: =SUM(B145:B149) -> 14540866.71 | C150: =SUM(C145:C149) -> 10292590.76 | D150: =SUM(D145:D149) -> 3587216.993
A152: Net Present Value | B152: High Estimate | C152: Middle Estimate | D152: Low Estimate
A153: Year 1 | B153: =IFERROR(B145-$C137, "") -> 2393200 | C153: 1694000 | D153: 590400
A154: Year 2 | B154: 3009557.344 | C154: 2130281.69 | D154: 742454.7284
A155: Year 3 | B155: 3027723.686 | C155: 2143140.533 | D155: 746936.3464
A156: Year 4 | B156: 3045999.684 | C156: 2156076.995 | D156: 751445.0165
A157: Year 5 | B157: 3064386 | C157: 2169091.545 | D157: 755980.902
A158: Total | B158: =B150-$C142 -> 14540866.71 | C158: =IFERROR(C150-$C142, "") -> 10292590.76 | D158: =IFERROR(D150-$C142, "") -> 3587216.993
B160: High Estimate | C160: Middle Estimate | D160: Low Estimate
A161: Five-Year Return on Investment | B161: =IFERROR((B150-C142)/C142, "") ->  | C161: =IFERROR((C150-C142)/C142, "") ->  | D161: =IFERROR((D150-C142)/C142, "") -> 
A162: Benefit-Cost Ratio | B162: =IFERROR(B150/C142, "") ->  | C162: =IFERROR(C150/C142, "") ->  | D162: =IFERROR(D150/C142, "") -> 
A163: Payback Period | B163: =IF(B158<0,"Never",IF(AND(SUM(B153:B156)<0,SUM(B153:B157)>0)=TRUE,5,IF(AND(SUM(B153:B155)<0,SUM(B153:B156)>0)=TRUE,4,IF(AND(SUM(B153:B154)<0,SUM(B153:B155)>0)=TRUE,3,IF(AND(SUM(B153:B153)<0,SUM(B153:B154)>0)=TRUE,2,1))))) -> 1 | C163: =IF(C158<0,"Never",IF(AND(SUM(C153:C156)<0,SUM(C153:C157)>0)=TRUE,5,IF(AND(SUM(C153:C155)<0,SUM(C153:C156)>0)=TRUE,4,IF(AND(SUM(C153:C154)<0,SUM(C153:C155)>0)=TRUE,3,IF(AND(SUM(C153:C153)<0,SUM(C153:C154)>0)=TRUE,2,1))))) -> 1 | D163: =IF(D158<0,"Never",IF(AND(SUM(D153:D156)<0,SUM(D153:D157)>0)=TRUE,5,IF(AND(SUM(D153:D155)<0,SUM(D153:D156)>0)=TRUE,4,IF(AND(SUM(D153:D154)<0,SUM(D153:D155)>0)=TRUE,3,IF(AND(SUM(D153:D153)<0,SUM(D153:D154)>0)=TRUE,2,1))))) -> 1
A164: =IF(E24>0, E24, "Vendor 3") -> Vendor 3
A165: Costs | B165: Then Year (inflation-adjusted future dollars) | C165: Present Value
A166: Year 1 | B166: =IFERROR(E30*(E$26+E$27/E$28)+SUM(E$30:E30)*E$36*12+E$37*12+(E$40/B$16)*E30*E$26+(E$41/B$16)*E30*E$42+E$43+(E$44/B$16)*E30*E$45+E$38+E$46+E$48+E$49+E$50+E$51+E$52+E$53+E$55+E$56+E$57+E$58+E$59+E65+E63*(E64+E66+E67)+E$69+((E$70+E$71)*12)-E$72, "") -> 0 | C166: =IFERROR(B166, "") -> 0
A167: Year 2 | B167: =IFERROR((1+$B$94)*(E31*(E$26+E$27/E$28)+SUM(E$30:E31)*E$36*12+E$37*12+(E$40/B$16)*E31*E$26+(E$41/B$16)*E31*E$42+E$43+(E$44/B$16)*E31*E$45+E$46+E$48+E$49+E$50+E$51+E$52+E$55+E$56+E$57+E$58+E$59+E63*(E64+E66+E67)+((E$70+E$71)*12)-E$72), "") -> 0 | C167: =IFERROR(B167/((1+$B$94)*(1+$B$95)), "") -> 0
A168: Year 3 | B168: =IFERROR(((1+$B$94)^2)*(E32*(E$26+E$27/E$28)+SUM(E$30:E32)*E$36*12+E$37*12+(E$40/B$16)*E32*E$26+(E$41/B$16)*E32*E$42+E$43+(E$44/B$16)*E32*E$45+E$46+E$48+E$49+E$50+E$51+E$52+E$55+E$56+E$57+E$58+E$59+E63*(E64+E66+E67)+((E$70+E$71)*12)-E$72), "") -> 0 | C168: =IFERROR(B168/((1+$B$94)^2*(1+$B$95)^2), "") -> 0
A169: Year 4 | B169: =IFERROR(((1+$B$94)^3)*(E33*(E$26+E$27/E$28)+SUM(E$30:E33)*E$36*12+E$37*12+(E$40/B$16)*E33*E$26+(E$41/B$16)*E33*E$42+E$43+(E$44/B$16)*E33*E$45+E$46+E$48+E$49+E$50+E$51+E$52+E$55+E$56+E$57+E$58+E$59+E63*(E64+E66+E67)+((E$70+E$71)*12)-E$72), "") -> 0 | C169: =IFERROR(B169/((1+$B$94)^3*(1+$B$95)^3), "") -> 0
A170: Year 5 | B170: =IFERROR(((1+$B$94)^4)*(E34*(E$26+E$27/E$28)+SUM(E$30:E34)*E$36*12+E$37*12+(E$40/B$16)*E34*E$26+(E$41/B$16)*E34*E$42+E$43+(E$44/B$16)*E34*E$45+E$46+E$48+E$49+E$50+E$51+E$52+E$55+E$56+E$57+E$58+E$59+E63*(E64+E66+E67)+((E$70+E$71)*12)-E$72), "") -> 0 | C170: =IFERROR(B170/((1+$B$94)^4*(1+$B$95)^4), "") -> 0
A171: Total Five-Year | B171: =SUM(B166:B170) -> 0 | C171: =SUM(C166:C170) -> 0
A173: Benefits (all present value) | B173: High Estimate | C173: Middle Estimate | D173: Low Estimate
A174: Year 1 | B174: =IFERROR((SUM($C$30:$C30)/$B$15)*($B$78*$B$79*(C$80+(1-C$80)*C$81*C$82)+$B$84*$B$85*(C$86)+$B$88*$B$89*(C$90)), "") -> 2393200 | C174: =IFERROR((SUM($C$30:$C30)/$B$15)*($B$78*$B$79*(D$80+(1-D$80)*D$81*D$82)+$B$84*$B$85*(D$86)+$B$88*$B$89*(D$90)), "") -> 1694000 | D174: =IFERROR((SUM($C$30:$C30)/$B$15)*($B$78*$B$79*(E$80+(1-E$80)*E$81*E$82)+$B$84*$B$85*(E$86)+$B$88*$B$89*(E$90)), "") -> 590400
A175: Year 2 | B175: =IFERROR((SUM($C$30:$C31)/$B$15)*($B$78*$B$79*(C$80+(1-C$80)*C$81*C$82)+$B$84*$B$85*(C$86)+$B$88*$B$89*(C$90))/(1+$B$95), "") -> 3009557.344 | C175: =IFERROR((SUM($C$30:$C31)/$B$15)*($B$78*$B$79*(D$80+(1-D$80)*D$81*D$82)+$B$84*$B$85*(D$86)+$B$88*$B$89*(D$90))/(1+$B$95), "") -> 2130281.69 | D175: =IFERROR((SUM($C$30:$C31)/$B$15)*($B$78*$B$79*(E$80+(1-E$80)*E$81*E$82)+$B$84*$B$85*(E$86)+$B$88*$B$89*(E$90))/(1+$B$95), "") -> 742454.7284
A176: Year 3 | B176: =IFERROR((SUM($C$30:$C32)/$B$15)*($B$78*$B$79*(C$80+(1-C$80)*C$81*C$82)+$B$84*$B$85*(C$86)+$B$88*$B$89*(C$90))/(1+$B$95)^2, "") -> 3027723.686 | C176: =IFERROR((SUM($C$30:$C32)/$B$15)*($B$78*$B$79*(D$80+(1-D$80)*D$81*D$82)+$B$84*$B$85*(D$86)+$B$88*$B$89*(D$90))/(1+$B$95)^2, "") -> 2143140.533 | D176: =IFERROR((SUM($C$30:$C32)/$B$15)*($B$78*$B$79*(E$80+(1-E$80)*E$81*E$82)+$B$84*$B$85*(E$86)+$B$88*$B$89*(E$90))/(1+$B$95)^2, "") -> 746936.3464
A177: Year 4 | B177: =IFERROR((SUM($C$30:$C33)/$B$15)*($B$78*$B$79*(C$80+(1-C$80)*C$81*C$82)+$B$84*$B$85*(C$86)+$B$88*$B$89*(C$90))/(1+$B$95)^3, "") -> 3045999.684 | C177: =IFERROR((SUM($C$30:$C33)/$B$15)*($B$78*$B$79*(D$80+(1-D$80)*D$81*D$82)+$B$84*$B$85*(D$86)+$B$88*$B$89*(D$90))/(1+$B$95)^3, "") -> 2156076.995 | D177: =IFERROR((SUM($C$30:$C33)/$B$15)*($B$78*$B$79*(E$80+(1-E$80)*E$81*E$82)+$B$84*$B$85*(E$86)+$B$88*$B$89*(E$90))/(1+$B$95)^3, "") -> 751445.0165
A178: Year 5 | B178: =IFERROR((SUM($C$30:$C34)/$B$15)*($B$78*$B$79*(C$80+(1-C$80)*C$81*C$82)+$B$84*$B$85*(C$86)+$B$88*$B$89*(C$90))/(1+$B$95)^4, "") -> 3064386 | C178: =IFERROR((SUM($C$30:$C34)/$B$15)*($B$78*$B$79*(D$80+(1-D$80)*D$81*D$82)+$B$84*$B$85*(D$86)+$B$88*$B$89*(D$90))/(1+$B$95)^4, "") -> 2169091.545 | D178: =IFERROR((SUM($C$30:$C34)/$B$15)*($B$78*$B$79*(E$80+(1-E$80)*E$81*E$82)+$B$84*$B$85*(E$86)+$B$88*$B$89*(E$90))/(1+$B$95)^4, "") -> 755980.902
A179: Total | B179: =SUM(B174:B178) -> 14540866.71 | C179: =SUM(C174:C178) -> 10292590.76 | D179: 3587216.993
A181: Net Present Value | B181: High Estimate | C181: Middle Estimate | D181: Low Estimate
A182: Year 1 | B182: =IFERROR(B174-$C166, "") -> 2393200 | C182: 1694000 | D182: 590400
A183: Year 2 | B183: 3009557.344 | C183: 2130281.69 | D183: 742454.7284
A184: Year 3 | B184: 3027723.686 | C184: 2143140.533 | D184: 746936.3464
A185: Year 4 | B185: 3045999.684 | C185: 2156076.995 | D185: 751445.0165
A186: Year 5 | B186: 3064386 | C186: 2169091.545 | D186: 755980.902
A187: Total | B187: =B179-$C171 -> 14540866.71 | C187: =C179-$C171 -> 10292590.76 | D187: =IFERROR(D179-$C171, "") -> 3587216.993
B189: High Estimate | C189: Middle Estimate | D189: Low Estimate
A190: Five-Year Return on Investment | B190: =IFERROR((B179-C171)/C171, "") ->  | C190: =IFERROR((C179-C171)/C171, "") ->  | D190: =IFERROR((D179-C171)/C171, "") -> 
A191: Benefit-Cost Ratio | B191: =IFERROR(B179/C171, "") ->  | C191: =IFERROR(C179/C171, "") ->  | D191: =IFERROR(D179/C171, "") -> 
A192: Payback Period | B192: =IF(B187<0,"Never",IF(AND(SUM(B182:B185)<0,SUM(B182:B186)>0)=TRUE,5,IF(AND(SUM(B182:B184)<0,SUM(B182:B185)>0)=TRUE,4,IF(AND(SUM(B182:B183)<0,SUM(B182:B184)>0)=TRUE,3,IF(AND(SUM(B182:B182)<0,SUM(B182:B183)>0)=TRUE,2,1))))) -> 1 | C192: =IF(C187<0,"Never",IF(AND(SUM(C182:C185)<0,SUM(C182:C186)>0)=TRUE,5,IF(AND(SUM(C182:C184)<0,SUM(C182:C185)>0)=TRUE,4,IF(AND(SUM(C182:C183)<0,SUM(C182:C184)>0)=TRUE,3,IF(AND(SUM(C182:C182)<0,SUM(C182:C183)>0)=TRUE,2,1))))) -> 1 | D192: =IF(D187<0,"Never",IF(AND(SUM(D182:D185)<0,SUM(D182:D186)>0)=TRUE,5,IF(AND(SUM(D182:D184)<0,SUM(D182:D185)>0)=TRUE,4,IF(AND(SUM(D182:D183)<0,SUM(D182:D184)>0)=TRUE,3,IF(AND(SUM(D182:D182)<0,SUM(D182:D183)>0)=TRUE,2,1))))) -> 1
A193: Additional Benefits for Consideration
A194: (See manual for more information)
A195: In-Car Video (IVC) Integration)
A196: Investigation
A197: Civil Litigation and Settlement Costs
A198: Anticipated Reductions or Increases in Arrests and Citations
A199: Anticipated Reductions in Officer Assaults and Injuries
A200: Officer Wellness
A201: Impact on Insurance Costs
A202: Trust and Perception
A203: Training and Development
A204: Save, Reset, and Clear

Sheet BWC Storage
A1: BWC Storage Estimator
A2: Worksheet Key
B3: Leave Blank | E3: Please note: This worksheet is intended to help agencies calcualte the amount of storage required for their BWC videos on an annual and 5 year basis. It is intented for use by agencies considering self storage of their BWC video files and/or paying for cloud storage by the TB.
B4: Required User Input
B5: Automatically Calculated Result
A6: Agency Information
A7: Agency Name | B7: =IF('BWC Costs'!B8:F8>0,'BWC Costs'!B8:F8,"") -> Example Agency
A8: Agency Address | B8: =IF('BWC Costs'!B9:F9>0,'BWC Costs'!B9:F9,"") -> 
A9: Agency City | B9: =IF('BWC Costs'!B10:F10>0,'BWC Costs'!B10:F10,"") -> 
A10: Agency State | B10: =IF('BWC Costs'!B11:F11>0,'BWC Costs'!B11:F11,"") -> 
A11: Agency Zip | B11: =IF('BWC Costs'!B12:F12>0,'BWC Costs'!B12:F12,"") -> 
A12: Storage Inputs
A13: Questions | F13: Comments & Explanations
A14: Number of sworn officers | B14: ='BWC Costs'!B15 -> 1500 | F14: Enter the number of officers that will be using BWCs.
A15: Number of BWCs to be purchased and deployed | B15: ='BWC Costs'!B16 -> 1500 | F15: Enter the number of BWCs to be fielded.
F17: Unless purchases spread over multiple years, we will compute a five-year total cost of ownership, with all purchases in year one.
A22: Category | B22: Questions | C22: =IF(C23>0,C23,"Vendor 1") -> BWC, Inc. | D22: =IF(D23>0,D23,"Vendor 2") -> Vendor 2 | E22: =IF(E23>0,E23,"Vendor 3") -> Vendor 3 | F22: Comments & Explanations
A23: Vendor Name(s) | B23: Enter Vendor Names | C23: BWC, Inc. | F23: Enter name(s) of vendors being considered as Vendor 1, Vendor 2, or Vendor 3 under the appropriate column.
A24: Number of BWCs purchased and deployed per Year | B24: Number of officers with BWC per Year | F24: This section will automatically populate unless you selected "I want to manually input purchase costs across five years" under the "Purchase Cost Distribution" question.
B25: Year 1 | C25: 1500 | D25: 1500 | E25: 1500
B26: Year 2 | C26: 0 | D26: 0 | E26: 0
B27: Year 3 | C27: 0 | D27: 0 | E27: 0
B28: Year 4 | C28: 0 | D28: 0 | E28: 0
B29: Year 5 | C29: 0 | D29: 0 | E29: 0
A30: Storage Needs | B30: Storage Needs
B31: Resolution | C31: Standard Definition – 480p | D31: Medium Definition – 720p | E31: High Definition – 1080p | F31: Select the resolution you will be using for each vendor (or comparing across one vendor).
B32: Hourly bandwidth (GBs/Hour of Video) | C32: 0.5 | D32: 2.5 | E32: 5 | F32: Enter the bandwidth for one hour in gigabytes.
B33: # of shifts/officer/week | C33: 4 | D33: =C33 -> 4 | E33: =C33 -> 4 | F33: Enter the estimated average number of shifts per officer per week
B34: # of hours of video per officer per shift | C34: 3 | D34: =C34 -> 3 | E34: =C34 -> 3 | F34: Enter the estimated average number of hours of video per officer per shift.
B35: Minimum retention requirements (in days) | C35: 30 | D35: =C35 -> 30 | E35: =C35 -> 30 | F35: Enter the minimum retention requirements in days.
B36: Percent of Videos that can be deleted at minimum retention | C36: 0.2 | D36: =C36 -> 0.2 | E36: =C36 -> 0.2 | F36: Enter the percent of videos that can be deleted at the minimum retention provided above.
A37: Hidden Row (For Calculations) | C37: =PRODUCT(C32:C34) -> 6 | D37: =PRODUCT(D32:D34) -> 30 | E37: =PRODUCT(E32:E34) -> 60 | F37: This row is intended for calculations only. No user input is required
A38: Cumulative Storage
A39: Storage per Year | B39: Year | C39: =C22 -> BWC, Inc. | D39: =D22 -> Vendor 2 | E39: =E22 -> Vendor 3 | F39: Comments & Explanations
B40: Year 1 | C40: =IFERROR(IF(C$35<365, ((52*C37*C25)-((C$36)*((52-((C$35/7)))*C37*C$25))),(52*C37*C$25)), "") -> 382114.2857 | D40: =IFERROR(IF(D$35<365, ((52*D37*D25)-((D$36)*((52-((D$35/7)))*D37*D$25))),(52*D37*D$25)), "") -> 1910571.429 | E40: 3821142.857 | F40: This is the amount of storage in gigabytes accumulated in year one.
B41: Year 2 | C41: =IFERROR(C40+IF(C$35>(365*2),(52*C$37*(C25+C26)),IF(C$35>365,(52*C$37*(C25+C26))-(C$36*C40),((1-C$36)*(52*C$37*C25+C26)-((C$36)*((52-(C$35/7))*C$37*C26))))),"") -> 756514.2857 | D41: =IFERROR(D40+IF(D$35>(365*2),(52*D$37*(D25+D26)),IF(D$35>365,(52*D$37*(D25+D26))-(D$36*D40),((1-D$36)*(52*D$37*D25+D26)-((D$36)*((52-(D$35/7))*D$37*D26))))),"") -> 3782571.429 | E41: 7565142.857 | F41: This is the amount of storage in gigabytes accumulated in years one and two.
B42: Year 3 | C42: =IFERROR(C41+IF(C$35>(365*3),(52*C$37*(C25+C26+C27)),IF(C$35>(365*2),(52*C$37*(C25+C26+C27))-(C$36*C41),((1-C$36)*(52*C$37*(C25+C26+C27))-((C$36)*((52-(C$35/7))*C$37*C27))))),"") -> 1130914.286 | D42: =IFERROR(D41+IF(D$35>(365*3),(52*D$37*(D25+D26+D27)),IF(D$35>(365*2),(52*D$37*(D25+D26+D27))-(D$36*D41),((1-D$36)*(52*D$37*(D25+D26+D27))-((D$36)*((52-(D$35/7))*D$37*D27))))),"") -> 5654571.429 | E42: 11309142.86 | F42: This is the amount of storage in gigabytes accumulated in from year one to three.
B43: Year 4 | C43: =IFERROR(C42+IF(C$35>(365*4),(52*C$37*(C25+C26+C27+C28)),IF(C$35>(365*3),(52*C$37*(C25+C26+C27+C28))-(C$36*C42),((1-C$36)*(52*C$37*(C25+C26+C27+C28))-((C$36)*((52-(C$35/7))*C$37*C28))))),"") -> 1505314.286 | D43: =IFERROR(D42+IF(D$35>(365*4),(52*D$37*(D25+D26+D27+D28)),IF(D$35>(365*3),(52*D$37*(D25+D26+D27+D28))-(D$36*D42),((1-D$36)*(52*D$37*(D25+D26+D27+D28))-((D$36)*((52-(D$35/7))*D$37*D28))))),"") -> 7526571.429 | E43: 15053142.86 | F43: This is the amount of storage in gigabytes accumulated in year one to four
B44: Year 5 | C44: =IFERROR(C43+IF(C$35>(365*5),(52*C$37*(C25+C26+C27+C28+C29)),IF(C$35>(365*4),(52*C$37*(C25+C26+C27+C28+C29))-(C$36*C43),((1-C$36)*(52*C$37*(C25+C26+C27+C28+C29))-((C$36)*((52-(C$35/7))*C$37*C29))))),"") -> 1879714.286 | D44: =IFERROR(D43+IF(D$35>(365*5),(52*D$37*(D25+D26+D27+D28+D29)),IF(D$35>(365*4),(52*D$37*(D25+D26+D27+D28+D29))-(D$36*D43),((1-D$36)*(52*D$37*(D25+D26+D27+D28+D29))-((D$36)*((52-(D$35/7))*D$37*D29))))),"") -> 9398571.429 | E44: 18797142.86 | F44: This is the amount of storage in gigabytes accumulated in year one to five.
B45: Storage per each remaining year | C45: =IFERROR((1-C$36)*(C$33*50*$B$14*C$34*C$32),"") -> 360000 | D45: =IFERROR((1-D$36)*(D$33*50*$B$14*D$34*D$32),"") -> 1800000 | E45: 3600000 | F45: This is the amount of storage in gigabytes accumulated per year after full deployment if minimum retention is less then five years days.
A46: Save and Clear

Sheet Lists (hidden)
A1: Yes | C1: Standard Definition – 480p
A2: No | C2: Medium Definition – 720p
A3: Sometimes | C3: High Definition – 1080p
A4: Don’t Know
